bitfinex-derivatives/quotes_SOLF0:USTF0_20230901
["timestamp","ask_amount","ask_price","bid_price","bid_amount"]
[1693547350845,0.71970522,19.855,19.851,150.60751261]
[1693547351447,108.04,19.858,19.851,150.60751261]
[1693547355948,108.04,19.862,19.854,108.04]
[1693547366651,0.81305332,19.86,19.854,108.04]
[1693547367054,0.81305332,19.86,19.856,0.68095217]
[1693547369056,0.45454546,19.859,19.832,500.0]
[1693547369252,108.04,19.85,19.843,21.3015]
[1693547369456,108.04,19.852,19.843,129.3415]
[1693547369751,108.04,19.852,19.843,108.04]
[1693547369959,108.04,19.852,19.844,21.3015]
[1693547370554,108.04,19.855,19.847,108.04]
[1693547370749,15.11,19.86,19.842,500.0]
[1693547370953,108.04,19.861,19.853,108.04]
[1693547371255,108.04,19.861,19.842,500.0]
[1693547371256,108.04,19.864,19.856,108.04]
[1693547371655,108.04,19.864,19.857,21.3015]
[1693547372058,108.04,19.864,19.857,129.3415]
[1693547372261,0.45454546,19.865,19.855,120.25]
[1693547372659,0.45454546,19.865,19.856,20.5702]
[1693547373856,0.71331911,19.862,19.856,20.5702]
[1693547379361,0.45454546,19.865,19.857,120.25]
[1693547379565,120.25,19.872,19.859,120.25]
[1693547379768,120.70454546,19.875,19.863,120.25]
[1693547379967,120.25,19.875,19.863,120.25]
[1693547384574,120.25,19.875,19.864,21.0901]
[1693547391073,15.1,19.886,19.864,172.1901]
[1693547391279,15.1,19.884,19.865,25.16989]
[1693547391474,15.1,19.884,19.873,120.25]
[1693547392380,108.01,19.884,19.876,108.01]
[1693547392681,123.11,19.884,19.876,108.01]
[1693547392983,108.01,19.884,19.876,108.01]
[1693547393478,0.7524636,19.882,19.878,0.79177475]
[1693547394274,108.01,19.889,19.881,108.01]
[1693547396080,108.01,19.889,19.883,0.73861303]
[1693547397482,15.1,19.89,19.883,0.73861303]
[1693547398280,15.1,19.89,19.878,121.4]
[1693547398973,15.1,19.89,19.885,0.75564713]
[1693547399175,15.1,19.887,19.885,0.75564713]
[1693547399378,15.1,19.887,19.874,121.4]
[1693547399379,0.45454546,19.886,19.874,121.4]
[1693547399586,1.14316031,19.886,19.874,121.4]
[1693547399880,0.45454546,19.885,19.874,121.4]
[1693547400081,15.1,19.884,19.874,121.4]
[1693547400675,15.55454546,19.887,19.874,121.4]
[1693547400880,0.45454546,19.886,19.874,121.4]
[1693547401182,0.71539846,19.881,19.874,121.4]
[1693547404283,0.71539846,19.881,19.877,121.4]
[1693547406881,0.71539846,19.881,19.879,121.4]
[1693547412590,55.35571644,19.91,19.883,15.03]
[1693547412792,121.4,19.914,19.898,121.4]
[1693547413093,500.0,19.909,19.897,15.03]
[1693547413294,121.4,19.911,19.897,15.03]
[1693547413489,500.0,19.909,19.896,121.4]
[1693547413694,500.0,19.909,19.899,121.4]
[1693547413695,524.18882497,19.909,19.899,121.4]
[1693547414296,24.18882497,19.909,19.899,121.4]
[1693547415108,524.18882497,19.909,19.899,121.4]
[1693547415704,21.4531,19.908,19.899,121.4]
[1693547415899,21.4531,19.908,19.897,121.4]
[1693547416105,524.18882497,19.909,19.897,121.4]
[1693547416300,21.4531,19.908,19.897,121.4]
[1693547416802,524.18882497,19.909,19.897,121.4]
[1693547417000,30.68773637,19.908,19.897,121.4]
[1693547417201,21.4531,19.908,19.897,121.4]
[1693547417401,524.18882497,19.909,19.897,121.4]
[1693547417602,15.1,19.907,19.897,121.4]
[1693547417803,15.1,19.908,19.897,121.4]
[1693547419299,9.23444028,19.907,19.897,121.4]
[1693547421609,15.1,19.908,19.897,121.4]
[1693547421805,9.23393664,19.907,19.897,121.4]
[1693547433216,15.08,19.904,19.891,121.4]
[1693547433418,9.23393664,19.903,19.891,121.4]
[1693547437222,15.08,19.899,19.888,121.4]
[1693547437620,15.08,19.901,19.888,121.4]
[1693547437916,136.48,19.899,19.885,121.4]
[1693547438121,9.23772162,19.898,19.885,121.4]
[1693547438823,9.23977151,19.897,19.885,121.4]
[1693547439023,136.48,19.899,19.885,121.4]
[1693547439527,9.2397986,19.898,19.885,121.4]
[1693547441019,136.48,19.899,19.885,121.4]
[1693547441220,9.23976296,19.898,19.885,121.4]
[1693547444221,136.48,19.899,19.885,121.4]
[1693547445022,176.73326632,19.899,19.885,121.4]
[1693547445423,20.6606,19.898,19.885,121.4]
[1693547445825,176.73326632,19.899,19.885,121.4]
[1693547446622,121.4,19.896,19.883,142.3219]
[1693547446828,121.4,19.896,19.883,121.4]
[1693547451829,15.09,19.89,19.881,121.4]
[1693547453240,15.09,19.89,19.889,0.1821305]
[1693547453638,15.09,19.89,19.885,0.24288926]
[1693547461437,15.09,19.89,19.881,121.70367235]
[1693547461438,15.09,19.89,19.881,121.4]
[1693547462038,15.09,19.89,19.879,121.4]
[1693547463636,15.09,19.887,19.877,35.1467]
[1693547464836,15.09,19.887,19.885,0.12144486]
[1693547467550,15.09,19.887,19.881,0.18220373]
[1693547472342,109.32,19.886,19.881,0.18220373]
[1693547475948,15.09,19.89,19.881,0.18220373]
[1693547476147,15.09,19.881,19.875,0.45454546]
[1693547476348,109.32,19.88,19.875,0.45454546]
[1693547477041,109.32,19.88,19.874,0.45454546]
[1693547478843,109.32,19.884,19.877,15.02]
[1693547479443,109.32,19.886,19.879,109.32]
[1693547480242,109.32,19.886,19.885,0.06072247]
[1693547480547,109.32,19.889,19.885,0.06072247]
[1693547480746,15.09,19.89,19.885,109.38072247]
[1693547482355,15.09,19.89,19.885,0.06072247]
[1693547488051,500.0,19.891,19.885,0.06072247]
[1693547491655,500.0,19.891,19.881,15.02]
[1693547496862,15.09,19.89,19.881,15.02]
[1693547497063,136.48,19.89,19.879,15.02]
[1693547507272,109.29,19.887,19.879,109.29]
[1693547520681,150.39663983,19.887,19.879,109.29]
[1693547522083,109.29,19.886,19.879,15.02]
[1693547525181,150.39663983,19.887,19.881,15.02]
[1693547525379,109.29,19.887,19.881,15.02]
[1693547529090,109.29,19.887,19.881,9.82448117]
[1693547540998,149.05269481,19.887,19.881,9.82448117]
[1693547542796,109.29,19.887,19.881,9.82448117]
[1693547552108,109.29,19.889,19.881,109.29]
[1693547555206,149.61176973,19.889,19.881,109.29]
[1693547555511,109.29,19.887,19.879,109.29]
[1693547566815,124.38,19.887,19.879,109.29]
[1693547567017,109.29,19.883,19.877,0.06074691]
[1693547569419,109.29,19.883,19.877,9.88522808]
[1693547571625,109.29,19.883,19.879,9.82448117]
[1693547572427,109.29,19.88,19.877,0.06074691]
[1693547582029,109.29,19.881,19.877,0.06074691]
[1693547586838,609.29,19.881,19.874,109.29]
[1693547587034,109.29,19.875,19.869,10.00679484]
[1693547588633,109.29,19.875,19.869,0.18231367]
[1693547596447,109.29,19.875,19.867,119.11448117]
[1693547596646,109.29,19.875,19.867,109.29]
[1693547597043,109.29,19.875,19.867,119.11448117]
[1693547597348,109.29,19.875,19.867,109.29]
[1693547598035,109.29,19.875,19.867,119.11448117]
[1693547598236,109.29,19.875,19.867,109.29]
[1693547598638,109.29,19.875,19.867,119.11448117]
[1693547598945,109.29,19.875,19.867,109.29]
[1693547599342,109.29,19.875,19.867,119.11448117]
[1693547599546,109.29,19.875,19.867,109.29]
[1693547599944,109.29,19.875,19.873,0.06075912]
[1693547606555,124.38,19.875,19.873,0.06075912]
[1693547611858,124.38,19.875,19.867,119.12448117]
[1693547612058,109.29,19.874,19.867,9.83448117]
[1693547615258,109.29,19.874,19.873,0.06075912]
[1693547615458,109.29,19.874,19.869,0.12154255]
[1693547621765,109.29,19.874,19.87,0.76213722]
[1693547621967,124.38,19.875,19.87,0.76213722]
[1693547630471,124.38,19.875,19.873,0.06075912]
[1693547631979,109.29,19.874,19.87,0.76213722]
[1693547633580,15.1,19.873,19.87,0.76213722]
[1693547641981,15.1,19.871,19.87,0.76213722]
[1693547647286,15.1,19.871,19.87,0.49850486]
[1693547647488,15.1,19.871,19.869,0.12154254]
[1693547647687,15.1,19.869,19.861,0.24318238]
[1693547647990,40.24949697,19.873,19.861,0.24318238]
[1693547647991,109.29,19.864,19.861,0.24318238]
[1693547652083,109.29,19.862,19.857,10.13851999]
[1693547652388,109.29,19.862,19.857,0.30403882]
[1693547652588,109.29,19.862,19.857,10.13851999]
[1693547652790,109.29,19.862,19.857,0.30403882]
[1693547654083,109.29,19.862,19.857,10.13851999]
[1693547654386,109.29,19.862,19.857,0.30403882]
[1693547655284,109.29,19.862,19.857,10.13851999]
[1693547655481,109.29,19.862,19.857,0.30403882]
[1693547655682,109.29,19.862,19.857,10.13851999]
[1693547655882,109.29,19.862,19.857,0.30403882]
[1693547656586,109.29,19.862,19.857,10.13851999]
[1693547656888,109.29,19.862,19.857,0.30403882]
[1693547657691,109.29,19.862,19.857,10.13851999]
[1693547658083,109.29,19.862,19.857,0.30403882]
[1693547658282,109.29,19.862,19.857,10.13851999]
[1693547658684,109.29,19.862,19.857,0.30403882]
[1693547658885,109.29,19.862,19.857,10.13851999]
[1693547659383,109.29,19.862,19.857,0.30403882]
[1693547659587,109.29,19.862,19.857,10.13851999]
[1693547659783,109.29,19.862,19.857,0.30403882]
[1693547661184,109.29,19.862,19.857,10.13851999]
[1693547661386,109.29,19.862,19.857,0.30403882]
[1693547661792,109.29,19.862,19.857,10.13851999]
[1693547661992,109.29,19.862,19.857,0.30403882]
[1693547662991,109.29,19.862,19.857,10.13851999]
[1693547663491,109.29,19.862,19.857,0.30403882]
[1693547663888,109.29,19.862,19.857,10.13851999]
[1693547664395,109.29,19.862,19.857,0.30403882]
[1693547664596,109.29,19.861,19.857,0.30403882]
[1693547665593,109.29,19.861,19.857,10.13851999]
[1693547665794,109.29,19.861,19.857,0.30403882]
[1693547666195,109.29,19.861,19.857,10.13851999]
[1693547666791,109.29,19.861,19.857,0.30403882]
[1693547667192,109.29,19.861,19.857,10.13851999]
[1693547667594,109.29,19.861,19.857,0.30403882]
[1693547668694,109.29,19.861,19.857,10.13851999]
[1693547669194,109.29,19.861,19.857,0.30403882]
[1693547669395,109.29,19.861,19.857,10.13851999]
[1693547669591,109.29,19.861,19.857,0.30403882]
[1693547669994,109.29,19.861,19.857,10.13851999]
[1693547670191,109.29,19.861,19.857,0.30403882]
[1693547670596,109.29,19.861,19.857,10.13851999]
[1693547670795,109.29,19.861,19.857,0.30403882]
[1693547671099,109.29,19.861,19.857,10.13851999]
[1693547671297,109.29,19.861,19.857,0.30403882]
[1693547671597,109.29,19.861,19.857,10.13851999]
[1693547671799,109.29,19.861,19.857,0.30403882]
[1693547672496,109.29,19.861,19.857,10.13851999]
[1693547672696,109.29,19.861,19.857,0.30403882]
[1693547674998,109.29,19.861,19.857,10.13851999]
[1693547675195,109.29,19.861,19.857,0.30403882]
[1693547675701,109.29,19.861,19.857,10.13851999]
[1693547676100,109.29,19.861,19.857,0.30403882]
[1693547676499,109.29,19.861,19.857,10.13851999]
[1693547676700,109.29,19.861,19.857,0.30403882]
[1693547676899,110.08237577,19.861,19.857,0.30403882]
[1693547679705,0.79237577,19.861,19.86,9.83448117]
[1693547681402,20.2506,19.87,19.863,9.83448117]
[1693547681605,129.5406,19.87,19.863,9.83448117]
[1693547681904,129.5406,19.87,19.862,109.29]
[1693547681905,109.29,19.87,19.865,9.83448117]
[1693547682102,109.29,19.871,19.866,9.83448117]
[1693547682300,109.29,19.871,19.864,9.83448117]
[1693547682497,109.29,19.871,19.863,109.29]
[1693547682498,109.29,19.871,19.865,9.83448117]
[1693547682805,109.29,19.871,19.866,9.83448117]
[1693547683004,109.29,19.871,19.864,9.83448117]
[1693547683502,109.29,19.871,19.866,9.83448117]
[1693547683905,109.29,19.871,19.865,9.83448117]
[1693547684709,109.29,19.871,19.866,9.83448117]
[1693547685305,109.29,19.871,19.865,9.83448117]
[1693547685801,109.29,19.871,19.866,9.83448117]
[1693547686003,109.29,19.871,19.865,9.83448117]
[1693547686304,109.29,19.871,19.866,9.83448117]
[1693547686503,109.29,19.871,19.865,9.83448117]
[1693547686806,109.29,19.871,19.866,9.83448117]
[1693547686997,109.29,19.871,19.864,9.83448117]
[1693547687199,109.29,19.871,19.866,9.83448117]
[1693547687399,109.29,19.871,19.865,9.83448117]
[1693547687600,109.29,19.871,19.866,9.83448117]
[1693547687799,109.29,19.871,19.865,9.83448117]
[1693547688104,109.29,19.871,19.864,9.83448117]
[1693547688302,109.29,19.871,19.863,109.29]
[1693547688303,109.29,19.871,19.866,9.83448117]
[1693547688496,109.29,19.871,19.864,9.83448117]
[1693547688699,109.29,19.871,19.865,9.83448117]
[1693547689205,109.29,19.871,19.866,9.83448117]
[1693547689605,109.29,19.871,19.867,9.83448117]
[1693547689801,109.29,19.871,19.866,9.83448117]
[1693547690002,109.29,19.871,19.867,9.83448117]
[1693547690402,109.29,19.871,19.864,0.45454546]
[1693547690403,109.29,19.871,19.865,9.83448117]
[1693547690707,109.29,19.871,19.866,9.83448117]
[1693547690912,109.29,19.871,19.865,9.83448117]
[1693547691110,109.29,19.871,19.866,9.83448117]
[1693547691411,109.29,19.871,19.865,9.83448117]
[1693547691606,109.29,19.871,19.866,9.83448117]
[1693547691806,109.29,19.871,19.865,9.83448117]
[1693547692011,109.29,19.871,19.866,9.83448117]
[1693547692213,109.29,19.871,19.865,9.83448117]
[1693547692809,109.29,19.871,19.866,9.83448117]
[1693547693211,109.29,19.871,19.865,9.83448117]
[1693547693804,109.29,19.871,19.866,9.83448117]
[1693547694007,109.29,19.871,19.865,9.83448117]
[1693547694912,109.29,19.871,19.866,9.83448117]
[1693547695608,109.29,19.871,19.865,9.83448117]
[1693547696114,109.29,19.871,19.866,9.83448117]
[1693547696308,109.29,19.871,19.865,9.83448117]
[1693547696504,109.29,19.871,19.866,9.83448117]
[1693547696710,109.29,19.871,19.865,9.83448117]
[1693547696910,109.29,19.871,19.866,9.83448117]
[1693547697307,109.29,19.871,19.865,9.83448117]
[1693547697812,109.29,19.871,19.866,9.83448117]
[1693547698209,109.29,19.871,19.867,9.83448117]
[1693547698404,109.29,19.871,19.865,9.83448117]
[1693547698604,109.29,19.871,19.866,9.83448117]
[1693547698807,109.29,19.871,19.867,9.83448117]
[1693547699009,109.29,19.871,19.866,9.83448117]
[1693547699207,109.29,19.871,19.867,9.83448117]
[1693547699409,109.29,19.871,19.865,9.83448117]
[1693547699611,109.29,19.871,19.867,9.83448117]
[1693547700214,109.29,19.871,19.865,9.83448117]
[1693547700410,109.29,19.871,19.866,9.83448117]
[1693547700710,109.29,19.871,19.867,9.83448117]
[1693547700912,109.29,19.871,19.865,9.83448117]
[1693547701110,109.29,19.871,19.867,9.83448117]
[1693547701409,109.29,19.871,19.866,9.83448117]
[1693547702112,109.29,19.872,19.867,9.83448117]
[1693547702811,109.29,19.872,19.865,9.83448117]
[1693547703213,109.29,19.875,19.867,109.29]
[1693547703416,136.67853977,19.875,19.867,119.12448117]
[1693547703607,136.67853977,19.875,19.867,109.29]
[1693547703812,136.67853977,19.875,19.867,119.12448117]
[1693547704014,27.38853977,19.875,19.87,109.29]
[1693547706414,130.0845,19.877,19.87,109.29]
[1693547716516,0.74454819,19.875,19.87,109.29]
[1693547722022,0.74454819,19.875,19.87,9.82448117]
[1693547729125,0.74454819,19.875,19.873,109.29]
[1693547729327,0.74454819,19.875,19.873,119.11448117]
[1693547730223,109.29,19.886,19.874,109.74454546]
[1693547730430,109.29,19.886,19.879,9.82448117]
[1693547731230,109.29,19.886,19.88,270.41262458]
[1693547731426,109.29,19.886,19.879,9.82448117]
[1693547732022,109.29,19.886,19.88,270.40872135]
[1693547732222,109.29,19.886,19.879,9.82448117]
[1693547733227,109.29,19.886,19.878,109.29]
[1693547734636,109.29,19.88,19.874,0.45454546]
[1693547736234,109.29,19.88,19.875,0.72700948]
[1693547738031,109.29,19.881,19.875,0.72700948]
[1693547738731,109.29,19.881,19.874,0.45454546]
[1693547739540,109.29,19.881,19.876,0.71142487]
[1693547752142,15.09,19.881,19.876,0.71142487]
[1693547752946,54.3374849,19.881,19.876,0.71142487]
[1693547762051,109.29,19.879,19.875,0.06075298]
[1693547768152,109.29,19.878,19.875,0.06075298]
[1693547769556,109.29,19.878,19.871,0.12153027]
[1693547769860,15.09,19.875,19.871,0.12153027]
[1693547773752,15.78164689,19.875,19.871,0.12153027]
[1693547776353,15.78164689,19.875,19.868,109.29]
[1693547776557,124.38,19.873,19.865,119.11448117]
[1693547777564,124.38,19.873,19.871,0.12153026]
[1693547784171,109.29,19.873,19.871,0.12153026]
[1693547797677,109.29,19.876,19.871,0.12153026]
[1693547798375,109.29,19.875,19.871,0.12153026]
[1693547801977,109.29,19.876,19.871,0.12153026]
[1693547806575,109.29,19.876,19.87,9.83448117]
[1693547807079,109.29,19.876,19.869,9.83448117]
[1693547807485,109.29,19.876,19.87,9.83448117]
[1693547807681,109.29,19.876,19.875,0.06075298]
[1693547813781,109.29,19.879,19.875,0.06075298]
[1693547816090,109.29,19.876,19.871,0.12153026]
[1693547820199,109.29,19.873,19.871,0.12153026]
[1693547822097,109.29,19.872,19.871,0.12153026]
[1693547840722,109.29,19.872,19.867,0.18233187]
[1693547854229,149.49925553,19.872,19.867,0.18233187]
[1693547857032,109.29,19.872,19.867,0.18233187]
[1693547858635,109.29,19.872,19.868,9.83]
[1693547861940,109.29,19.873,19.868,9.83]
[1693547876756,109.29,19.876,19.87,9.83]
[1693547881954,109.29,19.877,19.87,9.83]
[1693547892066,109.29,19.876,19.868,119.12]
[1693547892468,15.1,19.875,19.868,119.12]
[1693547892768,109.29,19.873,19.868,9.83]
[1693547902067,109.29,19.875,19.868,9.83]
[1693547907668,109.29,19.878,19.871,109.29]
[1693547907868,109.29,19.882,19.875,9.83]
[1693547912070,109.29,19.883,19.877,9.83]
[1693547917185,109.29,19.883,19.876,109.29]
[1693547924683,109.29,19.883,19.877,9.82]
[1693547928792,109.29,19.883,19.876,109.29]
[1693547929089,15.09,19.876,19.868,119.11]
[1693547929292,109.29,19.876,19.868,119.11]
[1693547932093,109.29,19.874,19.868,9.82]
[1693547941504,0.82726173,19.873,19.869,0.72720106]
[1693547942005,110.11726173,19.873,19.869,0.72720106]
[1693547946606,0.82726173,19.873,19.87,9.83]
[1693547975728,0.82726173,19.873,19.869,0.72720106]
[1693547976431,109.29,19.871,19.869,0.72720106]
[1693547976734,146.92459835,19.871,19.867,0.18233187]
[1693547978927,109.29,19.871,19.867,0.18233187]
[1693547981930,15.1,19.872,19.867,0.18233187]
[1693547986239,110.11726173,19.873,19.867,0.18233187]
[1693547987838,110.11726173,19.873,19.868,9.83]
[1693547992139,0.82726173,19.873,19.868,9.83]
[1693548002946,0.82726173,19.873,19.869,109.29]
[1693548004053,0.82726173,19.873,19.87,9.83]
[1693548012051,0.82726173,19.873,19.87,109.29]
[1693548015859,0.82726173,19.873,19.87,110.05633907]
[1693548023161,0.82726173,19.873,19.87,138.50874569]
[1693548035959,0.82726173,19.873,19.87,110.05633907]
[1693548046172,15.1,19.88,19.872,109.29]
[1693548046376,15.1,19.88,19.874,109.29]
[1693548046771,109.29,19.882,19.874,109.29]
[1693548057173,0.77946971,19.88,19.876,0.6842775]
[1693548069293,15.87946971,19.88,19.876,0.6842775]
[1693548111927,109.29,19.879,19.876,0.6842775]
[1693548151954,15.86946971,19.88,19.876,0.6842775]
[1693548158155,0.77946971,19.88,19.877,9.83]
[1693548160166,109.29,19.884,19.877,9.83]
[1693548160355,15.09,19.886,19.88,9.83]
[1693548165764,109.29,19.887,19.88,9.83]
[1693548168865,109.29,19.887,19.88,9.89073769]
[1693548173067,109.29,19.887,19.88,0.06073769]
[1693548174161,0.82363905,19.885,19.88,0.06073769]
[1693548174364,0.82363905,19.885,19.882,0.72282697]
[1693548176371,0.82363905,19.885,19.883,9.83]
[1693548176569,40.50678732,19.89,19.885,9.83]
[1693548176868,130.0062,19.891,19.885,9.83]
[1693548179276,170.41223014,19.891,19.885,9.83]
[1693548179974,109.29,19.891,19.885,9.83]
[1693548182075,109.29,19.892,19.885,109.29]
[1693548185978,109.29,19.892,19.885,109.35072242]
[1693548197484,109.29,19.892,19.885,109.29]
[1693548200890,109.29,19.892,19.885,109.350722]
[1693548202991,109.29,19.894,19.886,109.29]
[1693548222314,0.74692751,19.892,19.886,109.29]
[1693548222706,0.74692751,19.892,19.888,0.67950189]
[1693548228710,20.2359,19.898,19.891,109.29]
[1693548229007,20.2359,19.898,19.891,153.36505527]
[1693548229212,500.0,19.903,19.891,153.36505527]
[1693548229514,109.29,19.9,19.891,153.36505527]
[1693548232109,109.29,19.9,19.891,109.29]
[1693548242024,109.29,19.9,19.893,9.82]
[1693548242425,148.90407034,19.9,19.893,9.82]
[1693548251431,148.90407034,19.9,19.892,109.29]
[1693548251935,109.29,19.898,19.89,109.29]
[1693548259939,0.33112945,19.896,19.892,0.71353532]
[1693548273247,109.29,19.895,19.892,0.71353532]
[1693548273450,150.67617004,19.895,19.886,109.29]
[1693548273750,0.06070043,19.892,19.886,109.29]
[1693548275747,0.06070043,19.892,19.888,0.12142514]
[1693548286562,109.29,19.893,19.885,109.29]
[1693548287663,0.06070043,19.892,19.885,109.29]
[1693548291166,0.06070043,19.892,19.887,0.81536833]
[1693548292169,0.06070043,19.892,19.888,0.12142514]
[1693548298870,0.75880111,19.892,19.888,0.12142514]
[1693548307280,0.75880111,19.892,19.888,9.94142514]
[1693548310182,110.04880111,19.892,19.888,9.94142514]
[1693548325299,110.04880111,19.892,19.888,109.94142514]
[1693548325500,110.04880111,19.892,19.888,100.12142514]
[1693548330605,110.04880111,19.892,19.888,109.94142514]
[1693548332000,0.75880111,19.892,19.888,109.94142514]
[1693548357221,0.75880111,19.892,19.889,109.29]
[1693548357524,109.29,19.897,19.889,109.29]
[1693548361926,109.29,19.898,19.889,109.29]
[1693548365327,109.29,19.895,19.888,109.94142514]
[1693548367535,109.29,19.895,19.888,9.94142514]
[1693548370533,109.29,19.896,19.888,109.41142514]
[1693548372035,109.29,19.897,19.889,109.29]
[1693548374434,109.29,19.897,19.889,209.29]
[1693548383245,149.3985427,19.897,19.889,209.29]
[1693548392052,40.1085427,19.897,19.889,209.29]
[1693548392255,109.29,19.898,19.889,209.29]
[1693548392446,0.06070041,19.892,19.889,209.29]
[1693548401968,0.06070041,19.892,19.889,100.0]
[1693548410681,0.06070041,19.892,19.889,100.77979438]
[1693548412081,0.06070041,19.892,19.889,210.06979438]
[1693548428002,0.06070041,19.892,19.89,109.29]
[1693548438209,0.06070041,19.892,19.89,209.29]
[1693548451924,0.06070041,19.892,19.89,100.0]
[1693548542600,40.43015074,19.896,19.89,100.0]
[1693548542796,109.29,19.898,19.89,100.0]
[1693548543789,0.06070021,19.892,19.89,100.0]
[1693548558716,109.29,19.891,19.881,109.29]
[1693548558911,0.06070021,19.892,19.877,62.30245438]
[1693548559109,15.08,19.888,19.881,109.29]
[1693548562017,15.08,19.886,19.879,109.29]
[1693548571921,109.29,19.886,19.879,109.29]
[1693548572118,137.63256237,19.886,19.879,109.29]
[1693548574823,177.08153169,19.886,19.879,109.29]
[1693548575125,177.08153169,19.886,19.881,0.06073377]
[1693548581125,109.29,19.884,19.881,0.06073377]
[1693548587325,109.29,19.884,19.877,129.52659184]
[1693548587526,109.29,19.884,19.877,129.4051]
[1693548612653,0.8123438,19.882,19.879,0.80109874]
[1693548613452,0.8123438,19.882,19.88,9.82]
[1693548618153,0.8123438,19.882,19.88,119.11]
[1693548618356,39.44896932,19.886,19.88,155.40228407]
[1693548618555,23.61458304,19.902,19.88,155.40228407]
[1693548618556,109.29,19.891,19.885,9.82]
[1693548618749,109.29,19.895,19.888,9.82]
[1693548622057,137.85280762,19.897,19.889,109.29]
[1693548625161,28.56280762,19.897,19.891,109.29]
[1693548639178,149.30206029,19.9,19.891,109.29]
[1693548642080,142.16805792,19.899,19.891,109.29]
[1693548652176,142.16805792,19.899,19.89,109.29]
[1693548662093,142.16805792,19.899,19.891,109.29]
[1693548662396,72.31524384,19.899,19.892,109.29]
[1693548663591,147.1288568,19.902,19.895,109.29]
[1693548663792,650.23519859,19.903,19.895,109.29]
[1693548664195,650.23519859,19.903,19.896,9.81]
[1693548664592,9.23997891,19.902,19.896,9.81]
[1693548666197,0.31338315,19.901,19.896,9.81]
[1693548666393,0.31338315,19.901,19.897,0.75110488]
[1693548691008,142.01588192,19.9,19.897,0.75110488]
[1693548692603,109.29,19.898,19.889,109.29]
[1693548696122,109.29,19.898,19.892,0.76662448]
[1693548701924,109.29,19.896,19.892,0.76662448]
[1693548711829,109.29,19.896,19.893,0.12139333]
[1693548716139,148.79954773,19.896,19.893,0.12139333]
[1693548718741,109.29,19.896,19.893,0.12139333]
[1693548719742,0.06068453,19.897,19.893,9.94139333]
[1693548720435,109.29,19.902,19.895,9.82]
[1693548722738,109.29,19.901,19.893,9.82]
[1693548723738,0.06068452,19.897,19.893,9.82]
[1693548724042,109.29,19.895,19.888,9.82]
[1693548726048,109.29,19.895,19.893,0.12139329]
[1693548731955,109.29,19.894,19.893,0.12139329]
[1693548743368,109.29,19.894,19.89,0.78459197]
[1693548743570,109.29,19.891,19.89,0.78459197]
[1693548769087,0.71657821,19.892,19.89,0.78459197]
[1693548771985,110.00657821,19.892,19.89,0.78459197]
[1693548781995,109.29,19.891,19.89,0.78459197]
[1693548821526,124.37,19.891,19.89,0.78459197]
[1693548830144,124.37,19.891,19.889,0.12141767]
[1693548831644,15.08,19.89,19.889,0.12141767]
[1693548831850,109.29,19.89,19.885,0.18216295]
[1693548832042,15.08,19.891,19.885,0.18216295]
[1693548832043,109.29,19.886,19.885,0.18216295]
[1693548842548,109.29,19.886,19.88,9.82]
[1693548842748,109.29,19.885,19.88,9.82]
[1693548859963,109.29,19.885,19.882,9.82]